[Event "21st Dubai Open 2019"]
[Site "Dubai"]
[Date "2019.04.09"]
[Round "9.20"]
[White "Darini, Pouria"]
[Black "Mulenga, Prince Daniel"]
[Result "1/2-1/2"]
[ECO "A45"]
[WhiteElo "2455"]
[BlackElo "2252"]
[Annotator "ChessBase"]
[PlyCount "74"]
[EventDate "2019.04.01"]
[EventType "swiss"]
[EventCountry "UAE"]
[SourceTitle "playchess.com"]
[Source "ChessBase"]
[SourceQuality "1"]
[TimeControl "5400+30"]

1. d4 {[%emt 0:00:00]} Nf6 {[%emt 0:00:00]} 2. Bf4 {[%emt 0:00:00]} g6 {[%emt 0:01:07]} 3. Nc3 {[%emt 0:00:00]} Bg7 {[%emt 0:00:12]} 4. e4 {[%emt 0:00:00]} d6 {[%emt 0:00:13]} 5. Qd2 {[%emt 0:00:00]} c6 {[%emt 0:01:36]} 6. Nf3 {[%emt 0:00:07]} h6 {[%emt 0:00:58]} 7. h3 {[%emt 0:00:30]} b5 {[%emt 0:01:22]} 8. Bd3 {[%emt 0:05:00]} Nfd7 {[%emt 0:06:19]} 9. e5 {[%emt 0:15:29]} dxe5 {[%emt 0:03:11]} 10. Nxe5 {[%emt 0:00:01]} Qb6 {[%emt 0:06:36]} 11. Nf3 {[%emt 0:09:30]} b4 {[%emt 0:06:11]} 12. Ne4 {[%emt 0:03:08]} Ba6 {[%emt 0:12:05]} 13. O-O {[%emt 0:12:25]} Bxd3 {[%emt 0:00:10]} 14. cxd3 {[%emt 0:04:36]} g5 {[%emt 0:02:51]} 15. Bh2 {[%emt 0:10:11]} Na6 {[%emt 0:13:13]} 16. Rac1 {[%emt 0:02:13]} O-O {[%emt 0:02:06]} 17. h4 {[%emt 0:02:34]} f5 {[%emt 0:08:12]} 18. Nc5 {[%emt 0:00:25]} Ndxc5 {[%emt 0:00:28]} 19. dxc5 Nxc5 {[%emt 0:00:01]} 20. hxg5 {[%emt 0:01:04]} Rad8 {[%emt 0:00:45]} 21. Qe3 {[%emt 0:02:51]} Nxd3 {[%emt 0:02:20]} 22. Qe6+ {[%emt 0:00:27]} Kh8 {[%emt 0:00:00]} 23. Rxc6 {[%emt 0:02:00]} Qb5 {[%emt 0:00:44]} 24. Nh4 {[%emt 0:01:28]} hxg5 {[%emt 0:01:41]} 25. Ng6+ {[%emt 0:00:21]} Kh7 {[%emt 0:00:01]} 26. Nxf8+ {[%emt 0:00:31]} Rxf8 {[%emt 0:00:01]} 27. Rc7 {[%emt 0:04:20]} Bf6 {[%emt 0:01:59]} 28. Rxe7+ {[%emt 0:00:05]} Bxe7 {[%emt 0:00:04]} 29. Qxe7+ {[%emt 0:00:05]} Kg8 {[%emt 0:00:02]} 30. Qxg5+ {[%emt 0:00:11]} Kh7 {[%emt 0:00:13]} 31. Rd1 {[%emt 0:00:45]} Re8 {[%emt 0:00:47]} 32. Bd6 {[%emt 0:05:01]} Re4 {[%emt 0:05:24]} 33. Qg3 {[%emt 0:07:46]} Nxb2 {[%emt 0:04:50]} 34. Bf8 {[%emt 0:00:48]} Qb7 {[%emt 0:06:15]} 35. Rd8 {[%emt 0:02:14]} Rg4 {[%emt 0:03:14]} 36. Qh3+ {[%emt 0:00:42]} Kg6 {[%emt 0:01:35]} 37. Qh6+ {[%emt 0:00:10]} Kf7 {[%emt 0:00:02]} 1/2-1/2

[Event "21st Dubai Open 2019"]
[Site "Dubai"]
[Date "2019.04.09"]
[Round "9.21"]
[White "Quizon, Daniel"]
[Black "Divya Deshmukh"]
[Result "1/2-1/2"]
[ECO "B23"]
[WhiteElo "2340"]
[BlackElo "2432"]
[Annotator "NA"]
[PlyCount "91"]
[EventDate "2019.04.01"]
[EventType "swiss"]
[EventCountry "UAE"]
[SourceTitle "playchess.com"]
[Source "ChessBase"]
[SourceQuality "1"]
[TimeControl "5400+30"]

1. e4 {[%emt 0:00:01]} c5 {[%emt 0:00:00]} 2. Nc3 {[%emt 0:00:25]} Nc6 {[%emt 0:00:00]} 3. Nge2 {[%emt 0:00:08]} Nd4 {[%emt 0:00:00]} 4. Nxd4 {[%emt 0:03:21]} cxd4 {[%emt 0:00:00]} 5. Ne2 {[%emt 0:00:12]} e5 {[%emt 0:00:00]} 6. c3 {[%emt 0:00:55]} dxc3 {[%emt 0:00:01]} 7. Nxc3 {[%emt 0:00:17]} Bc5 {[%emt 0:00:25]} 8. Bc4 {[%emt 0:07:59]} Nf6 {[%emt 0:00:10]} 9. O-O {[%emt 0:00:38]} O-O {[%emt 0:01:06]} 10. d3 {[%emt 0:00:17]} h6 {[%emt 0:00:04]} 11. Kh1 {[%emt 0:06:57]} d6 {[%emt 0:02:16]} 12. f4 {[%emt 0:03:19]} Be6 {[%emt 0:10:24]} 13. f5 {[%emt 0:07:06]} Bxc4 {[%emt 0:00:21]} 14. dxc4 {[%emt 0:00:06]} Bd4 {[%emt 0:05:38]} 15. Nd5 {[%emt 0:04:13]} Rc8 {[%emt 0:15:21]} 16. Nxf6+ {[%emt 0:01:15]} (16. Qd3 $11) 16... Qxf6 $15 {[%emt 0:00:07]} 17. Qd3 {[%emt 0:15:42]} b6 {[%emt 0:03:31]} 18. Rb1 {[%emt 0:00:41]} Rc6 {[%emt 0:09:35]} 19. a4 {[%emt 0:01:16]} Rfc8 {[%emt 0:12:04]} 20. b3 {[%emt 0:00:32]} a6 {[%emt 0:00:03]} 21. Bd2 {[%emt 0:01:19]} Rb8 {[%emt 0:05:08]} 22. Rf3 {[%emt 0:02:59]} b5 {[%emt 0:05:00]} 23. cxb5 {[%emt 0:05:39]} axb5 {[%emt 0:00:21]} 24. a5 {[%emt 0:00:44]} b4 {[%emt 0:07:13]} 25. Rh3 {[%emt 0:01:37]} d5 {[%emt 0:12:28]} 26. exd5 {[%emt 0:05:04]} Rc5 {[%emt 0:00:30]} 27. Qe4 {[%emt 0:01:57]} Rxa5 {[%emt 0:00:31]} 28. Qg4 {[%emt 0:01:18]} Rba8 {[%emt 0:04:16]} 29. Rf3 {[%emt 0:10:51]} Rxd5 {[%emt 0:01:42]} 30. Bxb4 {[%emt 0:01:46]} Rd7 {[%emt 0:04:27]} 31. Rbf1 {[%emt 0:01:24]} Bb2 {[%emt 0:01:22]} 32. Bc5 {[%emt 0:01:33]} Rad8 {[%emt 0:00:29]} 33. Rg3 {[%emt 0:05:53]} Bd4 {[%emt 0:00:30]} 34. Bb4 {[%emt 0:00:36]} Bf2 {[%emt 0:00:10]} 35. Ba5 {[%emt 0:05:36]} Bxg3 {[%emt 0:00:36]} 36. Bxd8 {[%emt 0:00:10]} Rxd8 {[%emt 0:00:05]} 37. hxg3 {[%emt 0:00:29]} Rd3 {[%emt 0:00:48]} 38. Rb1 {[%emt 0:02:23]} Qd6 {[%emt 0:01:44]} 39. Kh2 {[%emt 0:01:12]} Rd4 {[%emt 0:00:19]} 40. Qe2 {[%emt 0:00:32]} e4 {[%emt 0:00:19]} 41. Rf1 {[%emt 0:00:38]} Qd5 {[%emt 0:00:36]} 42. Rf4 {[%emt 0:00:27]} Kh7 {[%emt 0:00:41]} 43. Qe3 {[%emt 0:00:43]} Rb4 {[%emt 0:00:37]} 44. Qe1 {[%emt 0:00:18]} Rxb3 {[%emt 0:00:24]} 45. Qxe4 {[%emt 0:00:09]} Qxe4 {[%emt 0:00:07]} 46. Rxe4 {[%emt 0:00:09]} 1/2-1/2

[Event "21st Dubai Open 2019"]
[Site "Dubai"]
[Date "2019.04.09"]
[Round "9.23"]
[White "Tokhirjonova, Gulrukhbegim"]
[Black "Praveen Kumar C"]
[Result "1-0"]
[ECO "B90"]
[WhiteElo "2427"]
[BlackElo "2225"]
[Annotator "NA"]
[PlyCount "127"]
[EventDate "2019.04.01"]
[EventType "swiss"]
[EventCountry "UAE"]
[SourceTitle "playchess.com"]
[Source "ChessBase"]
[SourceQuality "1"]
[TimeControl "5400+30"]

1. e4 {[%emt 0:00:00]} c5 {[%emt 0:00:00]} 2. Nf3 {[%emt 0:00:00]} d6 {[%emt 0:00:00]} 3. d4 {[%emt 0:00:38]} cxd4 {[%emt 0:00:00]} 4. Nxd4 {[%emt 0:00:03]} Nf6 {[%emt 0:00:00]} 5. Nc3 {[%emt 0:00:11]} a6 {[%emt 0:00:00]} 6. a4 {[%emt 0:00:19]} e5 {[%emt 0:01:33]} 7. Nf3 {[%emt 0:00:23]} Be7 {[%emt 0:16:02]} 8. Bg5 {[%emt 0:02:03]} Bg4 {[%emt 0:02:23]} 9. Bxf6 {[%emt 0:03:05]} Bxf6 {[%emt 0:00:10]} 10. Nd5 {[%emt 0:00:10]} Nd7 {[%emt 0:03:14]} 11. Ne3 {[%emt 0:05:43]} Bxf3 {[%emt 0:07:41]} 12. Qxf3 {[%emt 0:00:56]} Qb6 {[%emt 0:10:07]} 13. Nc4 {[%emt 0:11:49]} Qc6 {[%emt 0:01:58]} 14. Bd3 $14 {[%emt 0:05:22]} Nc5 {[%emt 0:02:56]} 15. O-O {[%emt 0:01:20]} O-O {[%emt 0:02:13]} 16. a5 {[%emt 0:00:29]} Bd8 {[%emt 0:01:09]} 17. Rfd1 {[%emt 0:05:26]} b5 {[%emt 0:03:37]} 18. axb6 {[%emt 0:04:02]} Bxb6 {[%emt 0:00:12]} 19. Bf1 {[%emt 0:00:16]} Rfd8 {[%emt 0:02:13]} 20. Rd5 {[%emt 0:01:57]} Ne6 {[%emt 0:00:59]} 21. Qd1 {[%emt 0:10:36]} Bc5 {[%emt 0:03:42]} 22. c3 {[%emt 0:01:27]} a5 {[%emt 0:07:11]} 23. Rxa5 {[%emt 0:07:12]} Rxa5 {[%emt 0:01:55]} 24. Nxa5 {[%emt 0:00:06]} Qb6 {[%emt 0:00:12]} 25. Nc4 {[%emt 0:00:12]} Bxf2+ {[%emt 0:00:15]} 26. Kh1 {[%emt 0:00:03]} Qb7 {[%emt 0:05:33]} 27. b4 {[%emt 0:02:16]} Ra8 {[%emt 0:02:31]} 28. Nxd6 {[%emt 0:01:40]} Qe7 {[%emt 0:00:46]} 29. Qf3 {[%emt 0:03:57]} Ra2 {[%emt 0:01:36]} 30. Bc4 {[%emt 0:01:06]} Ra1+ {[%emt 0:03:56]} 31. Rd1 {[%emt 0:00:04]} Rxd1+ {[%emt 0:00:19]} 32. Qxd1 {[%emt 0:00:05]} Bb6 {[%emt 0:00:07]} 33. Nc8 {[%emt 0:07:36]} Qc7 {[%emt 0:00:41]} 34. Nxb6 {[%emt 0:00:36]} Qxb6 {[%emt 0:00:03]} 35. Bxe6 {[%emt 0:02:24]} fxe6 {[%emt 0:00:07]} 36. Qe2 {[%emt 0:00:47]} Qc6 {[%emt 0:00:41]} 37. c4 {[%emt 0:00:46]} Qa4 {[%emt 0:00:05]} 38. Qe1 {[%emt 0:00:08]} Qc2 {[%emt 0:00:09]} 39. c5 {[%emt 0:00:26]} h6 {[%emt 0:00:09]} 40. h3 {[%emt 0:00:15]} Kh7 {[%emt 0:00:09]} 41. Kh2 {[%emt 0:00:16]} Kg8 {[%emt 0:00:08]} 42. Qh4 {[%emt 0:09:01]} Kh7 {[%emt 0:00:21]} 43. Qe1 {[%emt 0:02:13]} Kg8 {[%emt 0:00:06]} 44. Qe3 {[%emt 0:00:49]} Qc4 {[%emt 0:00:19]} 45. Qd2 {[%emt 0:03:15]} Kf7 {[%emt 0:03:26]} 46. Qd7+ {[%emt 0:01:24]} Kf6 {[%emt 0:00:55]} 47. Qd8+ {[%emt 0:00:07]} Kf7 {[%emt 0:00:07]} 48. Qd7+ {[%emt 0:02:55]} Kf6 {[%emt 0:00:09]} 49. Qe8 {[%emt 0:00:30]} Qxe4 {[%emt 0:01:08]} 50. Qf8+ {[%emt 0:00:07]} Kg6 {[%emt 0:00:06]} 51. b5 {[%emt 0:00:03]} Qb4 {[%emt 0:01:13]} 52. b6 {[%emt 0:00:02]} e4 {[%emt 0:00:14]} 53. Qf4 {[%emt 0:00:27]} Kh7 {[%emt 0:00:36]} 54. Qe5 {[%emt 0:00:36]} Kh8 {[%emt 0:00:32]} 55. Qb8+ {[%emt 0:03:23]} Kh7 {[%emt 0:00:08]} 56. Qf4 {[%emt 0:00:09]} Kg8 {[%emt 0:00:19]} 57. Qd6 {[%emt 0:01:14]} Kh7 {[%emt 0:00:17]} 58. Qxe6 {[%emt 0:01:14]} Qxc5 {[%emt 0:00:06]} 59. Qxe4+ {[%emt 0:00:03]} Kh8 {[%emt 0:00:12]} 60. b7 {[%emt 0:00:11]} Qd6+ {[%emt 0:00:21]} 61. Kg1 {[%emt 0:00:56]} Qd1+ {[%emt 0:00:36]} 62. Kf2 {[%emt 0:00:01]} Qd2+ {[%emt 0:00:14]} 63. Kg3 {[%emt 0:00:52]} Qd6+ {[%emt 0:00:07]} 64. Qf4 {[%emt 0:00:33]} 1-0

[Event "21st Dubai Open 2019"]
[Site "Dubai"]
[Date "2019.04.09"]
[Round "9.24"]
[White "Raahul V S"]
[Black "Saurabh Anand"]
[Result "1-0"]
[ECO "A13"]
[WhiteElo "2252"]
[BlackElo "2385"]
[Annotator "NA"]
[PlyCount "102"]
[EventDate "2019.04.01"]
[EventType "swiss"]
[EventCountry "UAE"]
[SourceTitle "playchess.com"]
[Source "ChessBase"]
[SourceQuality "1"]
[TimeControl "5400+30"]

1. c4 {[%emt 0:00:00]} e6 {[%emt 0:00:00]} 2. g3 {[%emt 0:00:00]} d5 {[%emt 0:00:02]} 3. Bg2 {[%emt 0:00:00]} Nf6 {[%emt 0:00:17]} 4. Nf3 {[%emt 0:00:00]} dxc4 {[%emt 0:00:31]} 5. Na3 {[%emt 0:00:03]} Bxa3 {[%emt 0:00:11]} 6. bxa3 {[%emt 0:00:02]} O-O {[%emt 0:00:36]} 7. Bb2 {[%emt 0:00:03] A13: English Opening: 1...e6} c5 {[%emt 0:01:02]} (7... Nc6 8. Rc1 Re8 9. Rxc4 e5 10. Qa1 Be6 11. Rh4 Bd5 12. d3 Nd7 13. O-O f6 14. Rc1 Qe7 15. Bh3 Be6 16. Bg2 Bd5 17. Bh3 Be6 18. Bg2 {½-½ (18) Iturrizaga Bonelli,E (2652)-Ferreira,J (2522) Maia 2018}) 8. Ne5 {[%emt 0:01:19]} Nbd7 $146 {[%emt 0:02:58]} ({Predecessor:} 8... Nd5 9. Nxc4 Nc6 10. O-O b6 11. Rc1 Bb7 12. d4 b5 13. Ne5 Nxe5 14. dxe5 Rc8 {½-½ (27) Barrantes Munoz,H (2211)-Bykov,A (2337) Seville 2012}) 9. Nxc4 {[%emt 0:00:18]} Qe7 {[%emt 0:00:47]} 10. O-O {[%emt 0:01:04]} Rb8 {[%emt 0:03:50]} 11. a4 {[%emt 0:01:02]} b6 {[%emt 0:00:56]} 12. Ne5 {[%emt 0:01:09]} Qd6 {[%emt 0:06:13]} 13. Nc6 {[%emt 0:03:51]} Rb7 {[%emt 0:00:25]} 14. d4 {[%emt 0:00:07]} Rc7 {[%emt 0:15:37]} 15. dxc5 {[%emt 0:00:22]} Qxd1 {[%emt 0:00:13]} 16. Rfxd1 {[%emt 0:00:11]} Nxc5 {[%emt 0:00:09]} 17. Be5 {[%emt 0:00:14]} Rd7 {[%emt 0:01:14]} 18. Bd6 {[%emt 0:00:04]} Nxa4 {[%emt 0:06:27]} 19. Bxf8 {[%emt 0:00:24]} Kxf8 {[%emt 0:00:07]} 20. Nxa7 {[%emt 0:00:11]} Nc3 {[%emt 0:01:11]} 21. Rxd7 {[%emt 0:00:04]} Bxd7 {[%emt 0:00:11]} 22. Bf3 {[%emt 0:06:08]} Nfd5 {[%emt 0:02:15]} 23. e4 {[%emt 0:00:17]} Nb4 {[%emt 0:01:01]} 24. a3 {[%emt 0:00:30]} Nd3 {[%emt 0:00:14]} 25. Kf1 {[%emt 0:02:53]} ({White should try} 25. Bd1 $18) 25... e5 {[%emt 0:02:24]} 26. a4 {[%emt 0:02:16]} Nxa4 {[%emt 0:00:37]} 27. Be2 $16 {[%emt 0:01:28]} Ndc5 {[%emt 0:02:48]} 28. f3 {[%emt 0:09:11]} Nb3 {[%emt 0:05:35]} 29. Ra3 {[%emt 0:00:44]} Nd4 {[%emt 0:00:11]} 30. Kf2 {[%emt 0:00:40]} Nc5 {[%emt 0:01:14]} 31. Nc8 {[%emt 0:01:27]} b5 {[%emt 0:09:06]} 32. Ra8 {[%emt 0:04:57]} Bc6 {[%emt 0:01:32]} 33. Ra7 {[%emt 0:00:53]} b4 {[%emt 0:04:36]} 34. Nd6 {[%emt 0:00:52]} Bd7 {[%emt 0:00:26]} 35. Ra5 {[%emt 0:06:44]} Na4 {[%emt 0:11:28]} 36. Bb5 b3 {[%emt 0:01:11]} 37. Bxd7 {[%emt 0:08:38]} b2 {[%emt 0:00:08]} 38. Rxe5 {[%emt 0:00:07]} g6 {[%emt 0:00:05]} 39. Re8+ {[%emt 0:00:03]} Kg7 {[%emt 0:00:06]} 40. Rb8 {[%emt 0:00:03]} Nc3 {[%emt 0:00:05]} 41. Ba4 {[%emt 0:05:37]} b1=Q {[%emt 0:04:02]} 42. Rxb1 {[%emt 0:00:03]} Nxb1 {[%emt 0:00:10]} 43. Ke3 {[%emt 0:00:12]} Nc3 {[%emt 0:00:50]} 44. Be8 {[%emt 0:04:53]} Ne6 {[%emt 0:03:15]} 45. Kd3 {[%emt 0:02:41]} Nd1 {[%emt 0:00:41]} 46. Bxf7 {[%emt 0:03:21]} Kf6 {[%emt 0:00:13]} 47. Bxe6 {[%emt 0:01:53]} Kxe6 {[%emt 0:00:07]} 48. Nc4 {[%emt 0:00:01]} g5 {[%emt 0:01:07]} 49. Kd2 {[%emt 0:00:26]} Nf2 {[%emt 0:00:07]} 50. Ke2 {[%emt 0:00:06]} Nh3 {[%emt 0:00:03]} 51. Kf1 {[%emt 0:00:06]} h5 {[%emt 0:00:09]} 1-0

[Event "21st Dubai Open 2019"]
[Site "Dubai"]
[Date "2019.04.09"]
[Round "9.25"]
[White "Harsha Bharathakoti"]
[Black "Bharath Subramaniyam H"]
[Result "1-0"]
[ECO "A45"]
[WhiteElo "2497"]
[BlackElo "2301"]
[Annotator "ChessBase"]
[PlyCount "105"]
[EventDate "2019.04.01"]
[EventType "swiss"]
[EventCountry "UAE"]
[SourceTitle "playchess.com"]
[Source "ChessBase"]
[SourceQuality "1"]
[TimeControl "5400+30"]

1. d4 {[%emt 0:00:00]} Nf6 {[%emt 0:00:00]} 2. Bg5 {[%emt 0:01:00]} Ne4 {[%emt 0:00:40]} 3. Bf4 {[%emt 0:00:10]} c5 {[%emt 0:00:20]} 4. f3 {[%emt 0:01:02]} Qa5+ {[%emt 0:00:46]} 5. c3 {[%emt 0:00:16]} Nf6 {[%emt 0:00:14]} 6. d5 {[%emt 0:00:18]} e6 {[%emt 0:01:45]} 7. e4 {[%emt 0:00:29]} exd5 {[%emt 0:00:02]} 8. exd5 {[%emt 0:00:18]} d6 {[%emt 0:00:10]} 9. Qd2 {[%emt 0:09:15]} Be7 {[%emt 0:00:29]} 10. c4 {[%emt 0:00:32]} Qxd2+ {[%emt 0:02:55]} 11. Nxd2 {[%emt 0:08:00]} b5 {[%emt 0:02:27]} 12. O-O-O {[%emt 0:05:35]} Nbd7 {[%emt 0:13:58]} 13. g4 {[%emt 0:19:05]} Nb6 {[%emt 0:06:48]} 14. b3 {[%emt 0:03:33]} Kd8 {[%emt 0:07:11]} 15. Bd3 {[%emt 0:08:31]} Rb8 {[%emt 0:24:31]} 16. Ne2 {[%emt 0:10:19]} bxc4 {[%emt 0:05:02]} 17. Nxc4 {[%emt 0:12:40]} Kc7 {[%emt 0:03:50]} 18. Nxb6 {[%emt 0:01:04]} Rxb6 {[%emt 0:00:26]} 19. Nc3 {[%emt 0:00:07]} Bd7 {[%emt 0:00:32]} 20. Rhe1 {[%emt 0:08:03]} Re8 {[%emt 0:00:50]} 21. h4 {[%emt 0:00:04]} Rbb8 {[%emt 0:06:23]} 22. Kc2 {[%emt 0:04:08]} h6 {[%emt 0:05:58]} 23. Bc4 {[%emt 0:02:58]} Bf8 {[%emt 0:01:29]} 24. a4 {[%emt 0:02:06]} g6 {[%emt 0:04:37]} 25. Kd2 {[%emt 0:02:23]} Kb7 {[%emt 0:07:04]} 26. Bh2 {[%emt 0:00:21]} a6 {[%emt 0:00:37]} 27. Rb1 {[%emt 0:00:40]} Rxe1 {[%emt 0:01:42]} 28. Rxe1 {[%emt 0:00:22]} Re8 {[%emt 0:00:09]} 29. Rb1 {[%emt 0:00:10]} Bc8 {[%emt 0:01:02]} 30. b4 {[%emt 0:00:45]} cxb4 {[%emt 0:00:01]} 31. Rxb4+ {[%emt 0:00:04]} Kc7 {[%emt 0:00:10]} 32. g5 {[%emt 0:00:59]} hxg5 {[%emt 0:00:15]} 33. hxg5 {[%emt 0:00:02]} Nd7 {[%emt 0:00:16]} 34. Ne4 {[%emt 0:00:30]} Ne5 {[%emt 0:00:36]} 35. Be2 {[%emt 0:00:36]} Bb7 {[%emt 0:00:52]} 36. Nf6 {[%emt 0:00:36]} Rb8 {[%emt 0:00:46]} 37. f4 {[%emt 0:00:34]} Nd7 {[%emt 0:00:14]} 38. Nxd7 {[%emt 0:00:27]} Kxd7 {[%emt 0:00:11]} 39. Bxa6 {[%emt 0:00:05]} Kc7 {[%emt 0:00:03]} 40. Bxb7 {[%emt 0:01:20]} Rxb7 {[%emt 0:00:01]} 41. Kc3 {[%emt 0:00:31]} Rxb4 {[%emt 0:00:32]} 42. Kxb4 Kb6 43. Bg1+ Ka6 44. Bd4 {[%emt 0:00:20]} Be7 {[%emt 0:01:03]} 45. Bf6 {[%emt 0:00:02]} Bf8 {[%emt 0:00:10]} 46. a5 {[%emt 0:00:03]} Kb7 {[%emt 0:00:13]} 47. Kb5 {[%emt 0:00:03]} Kc7 {[%emt 0:00:04]} 48. a6 {[%emt 0:00:03]} Kb8 {[%emt 0:00:03]} 49. Kb6 {[%emt 0:00:05]} Ka8 {[%emt 0:00:08]} 50. a7 {[%emt 0:00:05]} Bg7 {[%emt 0:00:20]} 51. Bxg7 {[%emt 0:00:04]} f5 {[%emt 0:00:02]} 52. gxf6 {[%emt 0:00:05]} g5 {[%emt 0:00:04]} 53. f7 {[%emt 0:00:03]} 1-0

[Event "21st Dubai Open 2019"]
[Site "Dubai"]
[Date "2019.04.09"]
[Round "9.26"]
[White "Akash G"]
[Black "Shailesh, Dravid"]
[Result "1-0"]
[ECO "A48"]
[WhiteElo "2414"]
[BlackElo "2316"]
[Annotator "NA RC"]
[PlyCount "67"]
[EventDate "2019.04.01"]
[EventType "swiss"]
[EventCountry "UAE"]
[SourceTitle "playchess.com"]
[Source "ChessBase"]
[SourceQuality "1"]
[TimeControl "5400+30"]

1. Nf3 {[%emt 0:00:00]} Nf6 {[%emt 0:00:00]} 2. d4 {[%emt 0:00:04]} g6 {[%emt 0:00:28]} 3. Bg5 {[%emt 0:00:39]} Bg7 {[%emt 0:00:21]} 4. Nbd2 {[%emt 0:00:19]} O-O {[%emt 0:00:12]} 5. c3 {[%emt 0:00:13]} d6 {[%emt 0:00:20]} 6. e4 {[%emt 0:00:18]} c5 {[%emt 0:00:10]} 7. dxc5 {[%emt 0:00:12]} dxc5 {[%emt 0:00:06]} 8. Bc4 {[%emt 0:00:07]} Nc6 {[%emt 0:00:32]} 9. O-O {[%emt 0:00:15]} Qc7 {[%emt 0:00:20]} 10. Qe2 {[%emt 0:01:02]} h6 {[%emt 0:02:40]} 11. Bxf6 {[%emt 0:00:54]} exf6 {[%emt 0:07:15]} 12. Nh4 {[%emt 0:02:53]} Kh7 {[%emt 0:02:09]} 13. f4 {[%emt 0:00:41]} Rb8 {[%emt 0:05:20]} 14. Bd3 {[%emt 0:08:05]} Re8 {[%emt 0:01:05]} 15. Nc4 {[%emt 0:04:53]} b5 {[%emt 0:04:26]} 16. Ne3 {[%emt 0:01:51]} c4 {[%emt 0:00:10]} 17. Bc2 {[%emt 0:00:56]} Qb6 {[%emt 0:01:42]} 18. Kh1 {[%emt 0:06:13]} f5 $11 {[%emt 0:01:41]} 19. e5 {[%emt 0:08:41]} Be6 {[%emt 0:03:31]} 20. Nexf5 {[%emt 0:05:31]} gxf5 {[%emt 0:01:42]} 21. Bxf5+ {[%emt 0:00:45]} Bxf5 {[%emt 0:13:48]} 22. Nxf5 {[%emt 0:00:10]} Ne7 {[%emt 0:02:04]} 23. Nxg7 {[%emt 0:13:12]} Kxg7 {[%emt 0:00:46]} 24. f5 {[%emt 0:00:19]} Kh7 {[%emt 0:05:22]} 25. Qh5 {[%emt 0:05:15]} Rf8 {[%emt 0:16:37]} 26. f6 {[%emt 0:24:25]} Ng6 {[%emt 0:00:24]} 27. Rf3 {[%emt 0:00:25]} Rh8 {[%emt 0:03:33]} 28. Rh3 {[%emt 0:02:54]} Kg8 {[%emt 0:00:08]} 29. Rg3 {[%emt 0:00:39]} Kh7 {[%emt 0:00:56]} 30. Rh3 {[%emt 0:06:49]} Kg8 {[%emt 0:00:07]} 31. Rg3 {[%emt 0:00:09]} Kh7 {[%emt 0:01:02]} 32. Qf5 {[%emt 0:00:17]} Rbe8 {[%emt 0:01:12]} 33. Rxg6 {[%emt 0:00:23]} Rb8 34. Rg3# {Rhg8} 1-0

[Event "21st Dubai Open 2019"]
[Site "Dubai"]
[Date "2019.04.09"]
[Round "9.27"]
[White "Ravi, Thandalam Shanmugam"]
[Black "Manush Shah"]
[Result "1-0"]
[ECO "B18"]
[WhiteElo "2276"]
[BlackElo "2405"]
[Annotator "NA"]
[PlyCount "75"]
[EventDate "2019.04.01"]
[EventType "swiss"]
[EventCountry "UAE"]
[SourceTitle "playchess.com"]
[Source "ChessBase"]
[SourceQuality "1"]
[TimeControl "5400+30"]

1. e4 c6 2. d4 d5 3. Nd2 dxe4 4. Nxe4 Bf5 5. Ng3 Bg6 6. h4 h6 7. Nf3 Nf6 8. Ne5 Bh7 9. Bd3 Bxd3 10. Qxd3 e6 11. Bd2 Nbd7 12. f4 Be7 13. O-O-O {B19: Classical Caro-Kann: 4...Bf5 main line} O-O (13... Qc7 14. Ne4 Nxe4 15. Qxe4 Nf6 16. Qf3 g6 17. Kb1 h5 18. c4 Rc8 19. Bc3 b5 20. d5 cxd5 21. cxd5 Nxd5 22. Rxd5 exd5 23. Qxd5 {1-0 (29) Saric,I (2652)-Navara,D (2725) Tallinn 2016}) 14. Qf3 Qc7 15. Rhe1 c5 16. Nxd7 Qxd7 17. dxc5 Qa4 18. Kb1 Bxc5 19. Bc3 Nd5 $16 ({Black should try} 19... Qc6) 20. Nh5 Nb4 21. Bxb4 Qxb4 22. a3 Qa5 23. b4 Bxb4 24. axb4 Qxb4+ 25. Qb3 Qc5 26. Re5 Qe7 27. f5 Qxh4 28. fxe6 fxe6 29. Qxe6+ Kh8 30. Qe7 Qg4 31. Rd7 Rf1+ 32. Kb2 Rg8 33. Rd8 Rff8 34. Qxf8 Rxf8 35. Rxf8+ Kh7 36. Nf6+ gxf6 37. Re7+ Kg6 38. Rg8+ 1-0

[Event "21st Dubai Open 2019"]
[Site "Dubai"]
[Date "2019.04.09"]
[Round "9.28"]
[White "Raja Rithvik R"]
[Black "Srihari L R"]
[Result "1-0"]
[ECO "A85"]
[WhiteElo "2391"]
[BlackElo "2263"]
[Annotator "NA"]
[PlyCount "87"]
[EventDate "2019.04.01"]
[EventType "swiss"]
[EventCountry "UAE"]
[SourceTitle "playchess.com"]
[Source "ChessBase"]
[SourceQuality "1"]
[TimeControl "5400+30"]

1. d4 {[%emt 0:00:00]} f5 {[%emt 0:00:00]} 2. c4 {[%emt 0:00:00]} Nf6 {[%emt 0:00:01]} 3. Nc3 {[%emt 0:00:00]} g6 {[%emt 0:00:06]} 4. h4 {[%emt 0:00:08]} Bg7 {[%emt 0:08:31]} 5. h5 {[%emt 0:00:06]} Nxh5 {[%emt 0:07:28]} 6. e4 {[%emt 0:00:11]} Nf6 {[%emt 0:08:47]} 7. exf5 {[%emt 0:00:15]} d6 {[%emt 0:04:47]} 8. fxg6 {[%emt 0:01:22]} hxg6 {[%emt 0:00:19]} 9. Rxh8+ {[%emt 0:00:05]} Bxh8 {[%emt 0:00:08]} 10. Bd3 {[%emt 0:00:34]} Bf5 {[%emt 0:00:51]} 11. Bxf5 {[%emt 0:05:47]} gxf5 {[%emt 0:00:02]} 12. Bg5 {[%emt 0:00:12]} Nbd7 {[%emt 0:08:37]} 13. Qf3 {[%emt 0:03:00]} Qc8 {[%emt 0:23:29]} 14. O-O-O {[%emt 0:07:12]} c5 {[%emt 0:11:52]} 15. Qxf5 {[%emt 0:08:33]} cxd4 {[%emt 0:09:12]} 16. Qg6+ {[%emt 0:05:57]} Kd8 {[%emt 0:00:05]} 17. Rxd4 {[%emt 0:00:16]} a6 {[%emt 0:00:31]} 18. Nge2 {[%emt 0:15:58]} Ne5 {[%emt 0:02:59]} 19. Qh6 {[%emt 0:00:48]} Kd7 {[%emt 0:02:02]} 20. Bxf6 {[%emt 0:05:44]} Bxf6 {[%emt 0:00:14]} 21. Nd5 {[%emt 0:00:05]} Qh8 {[%emt 0:02:49]} 22. Qf4 {[%emt 0:15:15]} Rf8 {[%emt 0:03:26]} 23. Qf5+ {[%emt 0:01:18]} e6 {[%emt 0:00:42]} 24. Nxf6+ {[%emt 0:00:52]} Qxf6 {[%emt 0:00:01]} 25. Qxf6 {[%emt 0:00:34]} Rxf6 {[%emt 0:00:01]} 26. f3 {[%emt 0:00:11]} Rg6 {[%emt 0:01:45]} 27. Nf4 {[%emt 0:00:25]} Rg3 {[%emt 0:01:00]} 28. Re4 {[%emt 0:02:53]} Rg8 {[%emt 0:01:01]} 29. Kd2 {[%emt 0:01:14]} Rh8 {[%emt 0:01:13]} 30. c5 {[%emt 0:01:59]} Rh1 {[%emt 0:01:17]} 31. cxd6 {[%emt 0:01:16]} Kxd6 {[%emt 0:00:05]} 32. Nxe6 {[%emt 0:05:35]} b5 {[%emt 0:01:38]} 33. Nf4 {[%emt 0:01:42]} Ra1 {[%emt 0:00:15]} 34. a3 {[%emt 0:01:14]} Rg1 {[%emt 0:00:43]} 35. Kc2 {[%emt 0:01:41]} a5 {[%emt 0:00:40]} 36. Re2 {[%emt 0:04:37]} a4 {[%emt 0:00:49]} 37. Nd3 {[%emt 0:02:30]} Nc4 {[%emt 0:00:19]} 38. Kc3 {[%emt 0:00:13]} Kd5 {[%emt 0:00:27]} 39. Kb4 {[%emt 0:02:19]} Kd4 {[%emt 0:00:18]} 40. Nf4 {[%emt 0:00:19]} Nd6 {[%emt 0:00:55]} 41. Re6 {[%emt 0:00:08]} Rb1 {[%emt 0:00:28]} 42. Rxd6+ {[%emt 0:00:06]} Ke5 {[%emt 0:00:04]} 43. Rd2 {[%emt 0:00:11]} Kxf4 {[%emt 0:00:04]} 44. Re2 {[%emt 0:00:22]} 1-0